bitfinex/quotes_SOLUSD_20240705
["timestamp","ask_amount","ask_price","bid_price","bid_amount"]
[1720144664444,7.7545,128.96,128.93,22.1844]
[1720144664608,100.0,128.96,128.87,23.0979]
[1720144664810,7.7572,128.92,128.87,23.0979]
[1720144665015,7.7554,128.95,128.87,30.8573]
[1720144665231,107.7545,128.96,128.87,30.8573]
[1720144665809,7.7551,128.95,128.87,30.8573]
[1720144666008,100.0,128.98,128.88,19.3975]
[1720144666252,100.0,128.98,128.9,7.7575]
[1720144666743,7.754,128.97,128.88,27.1563]
[1720144667042,100.0,128.95,128.87,23.0979]
[1720144667222,7.755,128.95,128.87,23.0979]
[1720144667612,7.7545,128.96,128.87,30.8572]
[1720144669342,7.7549,128.95,128.87,30.8572]
[1720144669662,100.0,128.97,128.88,7.7591]
[1720144670236,7.7549,128.96,128.87,50.2558]
[1720144670449,7.7549,128.95,128.87,50.2558]
[1720144670738,7.7555,128.94,128.87,23.0979]
[1720144670937,100.0,128.95,128.87,30.8576]
[1720144671309,100.0,128.95,128.87,23.0979]
[1720144671516,119.382,128.99,128.87,23.0979]
[1720144671519,7.7567,128.92,128.87,23.0979]
[1720144671727,107.7563,128.93,128.87,23.0979]
[1720144672215,7.7556,128.94,128.87,23.0979]
[1720144672526,100.0,128.92,128.87,23.0979]
[1720144672837,100.0,128.88,128.83,21.9032]
[1720144673018,107.7594,128.88,128.83,21.9032]
[1720144673612,100.0,128.88,128.83,21.9032]
[1720144675028,7.76,128.87,128.83,21.9032]
[1720144676349,100.0,128.88,128.81,0.1]
[1720144676350,107.7604,128.86,128.81,0.1]
[1720144677138,100.0,128.86,128.81,0.1]
[1720144677621,107.7603,128.86,128.81,0.1]
[1720144677828,7.7615,128.85,128.81,0.1]
[1720144679524,7.7616,128.84,128.81,0.1]
[1720144679731,7.7623,128.83,128.81,0.1]
[1720144681153,100.0,128.84,128.81,0.1]
[1720144681448,7.7627,128.82,128.81,0.1]
[1720144681748,107.7618,128.84,128.81,0.1]
[1720144682150,7.7618,128.84,128.81,0.1]
[1720144682646,7.761,128.85,128.81,0.1]
[1720144682855,8.1093511,128.88,128.81,0.1]
[1720144682856,100.0,128.88,128.81,0.1]
[1720144683141,107.7596,128.88,128.81,0.1]
[1720144683342,107.7578,128.91,128.81,0.1]
[1720144683568,107.7588,128.89,128.83,21.7065]
[1720144683752,100.0,128.89,128.83,21.7065]
[1720144683960,7.7598,128.87,128.83,21.7065]
[1720144684930,7.7604,128.86,128.83,21.7065]
[1720144686350,100.0,128.87,128.83,21.7065]
[1720144686752,107.7599,128.87,128.83,21.7065]
[1720144687052,7.7599,128.87,128.83,21.7065]
[1720144687770,7.7605,128.86,128.83,21.7065]
[1720144687944,7.762,128.84,128.81,0.1]
[1720144688662,100.0,128.85,128.81,0.1]
[1720144689251,100.0,128.87,128.81,0.1]
[1720144689448,7.7599,128.87,128.81,0.1]
[1720144689675,107.7599,128.87,128.81,0.1]
[1720144689982,7.7605,128.86,128.81,0.1]
[1720144690151,7.761,128.85,128.81,0.1]
[1720144690353,7.7604,128.86,128.81,0.1]
[1720144690872,107.7598,128.87,128.81,0.1]
[1720144691269,7.7603,128.86,128.81,0.1]
[1720144692273,7.7599,128.87,128.81,0.1]
[1720144692573,7.7603,128.86,128.81,0.1]
[1720144692750,107.7601,128.87,128.81,0.1]
[1720144692943,100.0,128.89,128.81,0.1]
[1720144693146,7.7581,128.9,128.83,6.2523]
[1720144693375,7.7574,128.91,128.83,6.2523]
[1720144693539,7.7581,128.9,128.83,6.2523]
[1720144693756,100.0,128.92,128.83,6.2523]
[1720144694261,7.7584,128.9,128.83,6.2523]
[1720144696767,100.0,128.92,128.83,6.2523]
[1720144696969,100.0,128.89,128.83,6.2523]
[1720144697452,7.7595,128.88,128.83,6.2523]
[1720144699166,7.76,128.87,128.83,6.2523]
[1720144701090,131.3,128.89,128.83,6.2523]
[1720144701269,139.059,128.89,128.83,6.2523]
[1720144701584,7.7593,128.88,128.83,6.2523]
[1720144702083,7.7601,128.87,128.83,6.2523]
[1720144702269,7.7603,128.86,128.83,6.2523]
[1720144702473,7.7599,128.87,128.83,6.2523]
[1720144702856,107.7599,128.87,128.83,6.2523]
[1720144703060,7.7607,128.86,128.83,6.2523]
[1720144703394,7.7613,128.85,128.83,6.2523]
[1720144703608,7.7604,128.86,128.83,6.2523]
[1720144704487,7.7616,128.84,128.82,16.5073]
[1720144704867,131.3,128.87,128.82,16.5073]
[1720144704868,7.761,128.85,128.82,16.5073]
[1720144705891,107.761,128.85,128.82,16.5073]
[1720144706576,100.0,128.83,128.81,0.1]
[1720144706796,7.7627,128.82,128.81,0.1]
[1720144706997,8.11359984,128.85,128.81,0.1]
[1720144707280,131.3,128.89,128.83,6.0035]
[1720144707481,107.7586,128.89,128.83,6.0035]
[1720144708493,7.7593,128.88,128.83,6.0035]
[1720144709791,7.7597,128.87,128.83,6.0035]
[1720144709996,100.0,128.89,128.83,6.0035]
[1720144711401,7.7593,128.88,128.83,6.0035]
[1720144711571,31.3,128.9,128.83,6.0035]
[1720144712074,8.11335105,128.91,128.83,6.0035]
[1720144712398,31.3,128.92,128.83,6.0035]
[1720144713011,7.7573,128.92,128.84,16.1297]
[1720144713502,7.7574,128.91,128.84,16.1297]
[1720144713871,100.0,128.93,128.84,16.1297]
[1720144714091,7.7587,128.89,128.84,16.1297]
[1720144714298,7.7579,128.9,128.84,16.1297]
[1720144714896,7.7586,128.89,128.84,16.1297]
[1720144716601,7.7593,128.88,128.84,16.1297]
[1720144717308,7.7603,128.86,128.84,16.1297]
[1720144717810,7.7613,128.85,128.83,6.0035]
[1720144717983,100.0,128.87,128.83,6.0035]
[1720144718369,7.7612,128.85,128.81,15.9585]
[1720144719295,7.7621,128.83,128.81,15.9585]
[1720144719470,7.7619,128.84,128.81,15.9585]
[1720144719984,7.761,128.85,128.81,15.9585]
[1720144721407,7.7621,128.84,128.81,15.9585]
[1720144721889,7.7622,128.83,128.81,15.9585]
[1720144722301,7.7622,128.83,128.81,0.1]
[1720144722481,107.7627,128.82,128.81,0.1]
[1720144722680,39.0627,128.82,128.81,0.1]
[1720144722883,139.0627,128.82,128.81,0.1]
[1720144724188,147.03965911,128.82,128.81,0.1]
[1720144724389,200.1491965,128.82,128.81,0.1]
[1720144724689,155.1491965,128.82,128.81,0.1]
[1720144724896,139.0627,128.82,128.81,0.1]
[1720144725305,39.0627,128.82,128.81,0.1]
[1720144726198,139.0627,128.82,128.81,0.1]
[1720144726688,8.1082592,128.84,128.81,22.3632]
[1720144726896,131.3,128.89,128.81,22.3632]
[1720144727091,100.0,128.88,128.81,22.3632]
[1720144727309,7.7598,128.87,128.81,22.3632]
[1720144728220,7.7604,128.86,128.81,22.3632]
[1720144728653,100.0,128.86,128.81,22.3632]
[1720144728932,7.7611,128.85,128.81,22.3632]
[1720144729102,100.0,128.86,128.81,22.3632]
[1720144729103,7.7616,128.84,128.81,22.3632]
[1720144729702,7.7627,128.82,128.81,0.1]
[1720144729891,100.0,128.84,128.81,0.1]
[1720144730290,107.762,128.84,128.81,0.1]
[1720144730791,7.7622,128.83,128.81,0.1]
[1720144731015,31.3,128.86,128.81,0.1]
[1720144731207,7.7608,128.86,128.81,0.1]
[1720144731523,7.7612,128.85,128.81,0.1]
[1720144732096,7.7613,128.85,128.81,0.1]
[1720144732915,7.7605,128.86,128.81,0.1]
[1720144733133,107.7605,128.86,128.81,0.1]
[1720144734620,7.7611,128.85,128.81,0.1]
[1720144734819,131.3,128.86,128.81,0.1]
[1720144734820,139.0607,128.86,128.81,0.1]
[1720144735038,7.7599,128.87,128.81,0.1]
[1720144735549,7.7604,128.86,128.81,0.1]
[1720144735758,46.3,128.94,128.81,0.1]
[1720144735759,100.0,128.92,128.82,22.2678]
[1720144736038,131.3,128.93,128.82,41.6739]
[1720144736230,131.3,128.93,128.84,7.7611]
[1720144736231,7.7568,128.92,128.84,7.7611]
[1720144736412,100.0,128.95,128.85,6.1616]
[1720144736612,100.0,128.95,128.86,15.7054]
[1720144736837,7.7562,128.93,128.86,15.7054]
[1720144737019,7.7567,128.92,128.86,15.7054]
[1720144737222,7.7575,128.91,128.86,15.7054]
[1720144738145,100.0,128.93,128.86,15.7054]
[1720144738441,7.7568,128.92,128.86,15.7054]
[1720144738636,7.7574,128.91,128.86,15.7054]
[1720144740524,7.7568,128.92,128.86,15.7054]
[1720144741320,7.7573,128.91,128.86,15.7054]
[1720144741517,31.3,128.94,128.86,15.7054]
[1720144741825,7.7561,128.93,128.86,15.7054]
[1720144742437,7.7567,128.92,128.86,15.7054]
[1720144742738,108.10880396,128.95,128.87,7.7592]
[1720144742739,8.10880396,128.95,128.87,7.7592]
[1720144742940,7.7544,128.96,128.87,7.7592]
[1720144743143,7.7562,128.93,128.86,15.7054]
[1720144743457,7.7557,128.94,128.86,15.7054]
[1720144743616,7.7563,128.93,128.86,15.7054]
[1720144744127,7.7567,128.92,128.86,15.7054]
[1720144745157,100.0,128.93,128.86,15.7054]
[1720144745319,131.3,128.93,128.86,15.7054]
[1720144745525,150.6907,128.93,128.86,15.7054]
[1720144746441,7.7573,128.91,128.86,15.7054]
[1720144747121,7.7584,128.9,128.86,15.7054]
[1720144747332,7.7587,128.89,128.86,15.7054]
[1720144747540,7.7581,128.9,128.86,15.7054]
[1720144747853,7.7577,128.91,128.86,15.7054]
[1720144748149,7.7562,128.93,128.86,15.7054]
[1720144748658,7.7555,128.95,128.86,23.4656]
[1720144749122,8.10444318,128.97,128.9,16.3568]
[1720144749327,31.3,128.99,128.92,7.7565]
[1720144749636,7.7518,129.01,128.94,6.6475]
[1720144749847,7.7518,129.01,128.95,1.17531811]
[1720144750032,31.3,129.02,128.96,1.17522697]
[1720144750353,7.7509,129.02,128.96,16.3568]
[1720144750519,7.7514,129.01,128.96,16.3568]
[1720144750729,100.0,129.01,128.96,16.3568]
[1720144751042,7.7535,128.98,128.96,16.3568]
[1720144751647,7.7535,128.98,128.94,6.6475]
[1720144752368,107.7526,128.99,128.94,6.6475]
[1720144752738,100.0,128.99,128.94,6.6475]
[1720144753052,107.7526,128.99,128.94,6.6475]
[1720144754034,7.7545,128.96,128.94,6.6475]
[1720144754232,100.0,128.99,128.94,6.6475]
[1720144754434,7.7532,128.98,128.94,6.6475]
[1720144754962,100.0,128.97,128.94,6.6475]
[1720144755167,107.7537,128.97,128.93,16.3568]
[1720144755354,100.0,128.97,128.93,16.3568]
[1720144755550,107.7539,128.97,128.93,16.3568]
[1720144755938,7.7544,128.96,128.93,16.3568]
[1720144756460,39.0532,128.98,128.93,16.3568]
[1720144757166,107.7539,128.97,128.93,16.3568]
[1720144757460,100.0,128.97,128.91,6.6475]
[1720144757663,7.756,128.94,128.89,15.313]
[1720144757833,107.7549,128.95,128.89,15.313]
[1720144758360,31.3,128.96,128.89,15.313]
[1720144758583,7.7544,128.96,128.89,15.313]
[1720144758871,100.0,128.97,128.89,15.313]
[1720144758872,7.755,128.95,128.89,15.313]
[1720144759242,7.7557,128.94,128.89,15.313]
[1720144759945,7.757,128.92,128.89,15.313]
[1720144760262,100.0,128.93,128.89,15.313]
[1720144760437,39.0557,128.94,128.89,15.313]
[1720144760831,7.7562,128.93,128.89,15.313]
[1720144762451,31.3,128.96,128.89,15.313]
[1720144762655,39.0547,128.96,128.89,15.313]
[1720144763182,7.7555,128.94,128.89,15.313]
[1720144764057,7.7563,128.93,128.89,15.313]
[1720144764264,100.0,128.94,128.89,15.313]
[1720144764857,131.3,128.96,128.89,15.313]
[1720144765054,39.0544,128.96,128.89,15.313]
[1720144765362,7.755,128.95,128.89,15.313]
[1720144767499,7.7555,128.94,128.89,15.313]
[1720144767949,7.7563,128.93,128.89,15.313]
[1720144768145,131.3,128.94,128.89,15.313]
[1720144768749,7.7563,128.93,128.89,15.313]
[1720144768949,8.11653939,128.98,128.89,15.313]
[1720144769152,100.0,128.97,128.89,15.313]
[1720144769375,7.7547,128.96,128.89,15.313]
[1720144769562,7.755,128.95,128.89,15.313]
[1720144769764,100.0,128.97,128.89,15.313]
[1720144769967,39.41653939,128.98,128.89,15.313]
[1720144770172,39.41653939,128.98,128.89,23.0712]
[1720144770173,7.7542,128.97,128.89,23.0712]
[1720144770477,7.7542,128.97,128.89,15.313]
[1720144770979,100.0,128.96,128.89,15.313]
[1720144771686,7.7551,128.95,128.89,15.313]
[1720144771991,7.7556,128.94,128.89,15.313]
[1720144772174,100.0,128.96,128.89,15.313]
[1720144772175,7.755,128.95,128.89,15.313]
[1720144773568,7.7545,128.96,128.89,15.313]
[1720144773766,7.7549,128.95,128.89,15.313]
[1720144774283,7.7562,128.93,128.89,15.313]
[1720144774489,100.0,128.94,128.89,15.313]
[1720144774490,7.7556,128.94,128.89,15.313]
[1720144774865,39.0544,128.96,128.89,15.313]
[1720144775178,7.7544,128.96,128.89,15.313]
[1720144775373,8.11653939,128.98,128.9,7.7577]
[1720144775585,7.7527,128.99,128.91,6.6531]
[1720144776093,7.7531,128.98,128.91,6.6531]
[1720144777184,107.7524,129.0,128.92,23.8713]
[1720144777509,107.7524,129.0,128.92,16.1149]
[1720144777684,7.7533,128.98,128.92,16.1149]
[1720144778191,7.7527,128.99,128.92,16.1149]
[1720144780580,100.0,129.0,128.92,23.8714]
[1720144780907,100.0,129.0,128.93,7.756]
[1720144781290,100.0,129.0,128.92,43.263]
[1720144781879,107.7521,129.0,128.92,43.263]
[1720144783903,7.7526,128.99,128.92,16.1149]
[1720144784380,7.7534,128.98,128.92,16.1149]
[1720144785506,100.0,129.0,128.92,16.1149]
[1720144785676,7.7532,128.98,128.92,16.1149]
[1720144786507,7.7526,128.99,128.92,16.1149]
[1720144789276,7.7532,128.98,128.92,16.1149]
[1720144789478,7.7525,128.99,128.92,16.1149]
[1720144790589,7.7533,128.98,128.92,16.1149]
[1720144791910,15.62,128.96,128.92,16.1149]
[1720144792408,15.62,128.95,128.92,16.1149]
[1720144792611,15.62,128.94,128.92,16.1149]
[1720144794906,100.0,128.95,128.91,6.6531]
[1720144795103,15.62,128.92,128.89,16.5429]
[1720144795283,15.62,128.91,128.89,16.5429]
[1720144795906,100.0,128.97,128.89,16.5429]
[1720144796106,15.62,128.91,128.89,16.5429]
[1720144796909,100.0,128.95,128.89,16.5429]
[1720144797093,15.62,128.9,128.89,16.5429]
[1720144797617,15.62,128.91,128.89,16.5429]
[1720144798812,100.0,128.93,128.89,16.5429]
[1720144799010,15.62,128.9,128.89,16.5429]
[1720144800116,15.62,128.9,128.85,16.362]
[1720144800314,15.62,128.86,128.85,16.362]
[1720144800817,15.62,128.86,128.82,15.1713]
[1720144800996,15.62,128.84,128.82,15.1713]
[1720144801213,15.62,128.83,128.81,0.1]
[1720144801399,31.24,128.82,128.81,0.1]
[1720144801710,78.1,128.82,128.81,0.1]
[1720144801922,100.0,128.84,128.81,0.1]
[1720144802211,15.62,128.82,128.81,0.1]
[1720144802391,78.1,128.82,128.81,0.1]
[1720144802987,185.8627,128.82,128.81,0.1]
[1720144803699,107.7627,128.82,128.81,0.1]
[1720144803906,139.0927,128.82,128.81,0.1]
[1720144804113,107.7627,128.82,128.81,0.1]
[1720144804288,147.21391916,128.82,128.81,0.1]
[1720144804829,192.21391916,128.82,128.81,0.1]
[1720144805015,7.7654,128.78,128.73,21.9828]
[1720144805191,7.7657,128.77,128.73,15.3586]
[1720144805396,7.7653,128.78,128.73,15.3586]
[1720144805598,131.33,128.79,128.71,0.1]
[1720144805599,7.7666,128.76,128.71,0.1]
[1720144805791,7.7665,128.76,128.71,0.1]
[1720144806000,100.0,128.74,128.71,0.1]
[1720144806302,107.7677,128.74,128.71,0.1]
[1720144806818,7.7682,128.73,128.71,0.1]
[1720144806996,31.33,128.75,128.71,0.1]
[1720144807204,107.7677,128.74,128.71,0.1]
[1720144807508,19.4136,128.78,128.71,0.1]
[1720144807509,100.0,128.78,128.71,0.1]
[1720144807708,7.7669,128.75,128.71,0.1]
[1720144807914,7.7676,128.74,128.71,0.1]
[1720144808120,7.7671,128.75,128.71,0.1]
[1720144808296,39.0976,128.74,128.71,0.1]
[1720144808503,7.7688,128.72,128.71,0.1]
[1720144808697,139.0988,128.72,128.71,0.1]
[1720144809196,239.0988,128.72,128.71,0.1]
[1720144809397,284.0988,128.72,128.71,0.1]
[1720144809602,107.7706,128.69,128.68,0.8286809]
[1720144809816,139.1006,128.69,128.68,0.8286809]
[1720144810206,100.0,128.74,128.68,0.8286809]
[1720144810412,39.097,128.75,128.68,0.8286809]
[1720144810613,31.33,128.75,128.68,0.8286809]
[1720144810820,7.7664,128.76,128.68,0.8286809]
[1720144811119,7.7664,128.76,128.69,22.6427]
[1720144811825,39.0958,128.77,128.69,22.6427]
[1720144812008,178.26521916,128.82,128.69,22.6427]
[1720144812009,8.12121916,128.82,128.7,20.0]
[1720144812344,8.12121916,128.82,128.77,6.5816]
[1720144812507,100.0,128.86,128.79,7.7643]
[1720144812825,7.7597,128.87,128.78,7.7645]
[1720144813009,7.7592,128.88,128.79,7.7645]
[1720144813523,31.33,128.89,128.78,19.4119]
[1720144813729,7.7578,128.91,128.81,7.7632]
[1720144813932,7.7578,128.91,128.82,1.17558807]
[1720144814105,7.7578,128.91,128.83,1.17549681]
[1720144814308,7.7578,128.91,128.82,1.17549681]
[1720144814507,7.7578,128.91,128.83,1.17540556]
[1720144814709,100.0,128.94,128.84,1.17610096]
[1720144814920,100.0,128.94,128.83,1.17625962]
[1720144815120,100.0,128.94,128.82,7.7627]
[1720144815121,8.11631569,128.94,128.84,7.7615]
[1720144815437,100.0,128.98,128.84,19.4024]
[1720144815616,100.0,128.98,128.86,19.3994]
[1720144815821,100.0,128.96,128.86,19.3994]
[1720144816119,7.7558,128.94,128.86,19.3994]
[1720144816321,100.0,128.94,128.85,22.2996]
[1720144816535,7.7589,128.89,128.8,40.6918]
[1720144816719,38.7697,128.97,128.8,21.2821]
[1720144816720,100.0,128.88,128.8,21.2821]
[1720144817110,107.7584,128.9,128.8,29.046]
[1720144817325,107.7584,128.9,128.81,7.7629]
[1720144817525,107.7584,128.9,128.8,21.2821]
[1720144817829,7.7586,128.89,128.8,21.2821]
[1720144818129,100.0,128.87,128.8,21.2821]
[1720144818303,7.7612,128.85,128.8,6.185]
[1720144818907,100.0,128.85,128.75,42.3072]
[1720144819242,100.0,128.87,128.77,7.7657]
[1720144819426,100.0,128.87,128.76,7.7663]
[1720144819619,100.0,128.87,128.77,7.7656]
[1720144819827,100.0,128.87,128.77,19.4133]
[1720144820030,7.761,128.85,128.77,19.4133]
[1720144820335,7.761,128.85,128.76,7.7659]
[1720144820742,107.761,128.85,128.76,7.7659]
[1720144821038,7.7628,128.82,128.75,22.89]
[1720144821247,100.0,128.83,128.75,22.89]
[1720144821528,7.7633,128.82,128.75,22.89]
[1720144821730,7.7638,128.81,128.75,22.89]
[1720144821936,7.764,128.8,128.75,6.3677]
[1720144822118,100.0,128.83,128.75,6.3677]
[1720144822432,100.0,128.81,128.72,19.4211]
[1720144822638,100.0,128.79,128.7,23.279]
[1720144822814,100.0,128.79,128.7,31.0488]
[1720144823129,100.0,128.81,128.7,31.0488]
[1720144823335,100.0,128.81,128.7,23.279]
[1720144823336,100.0,128.79,128.7,23.279]
[1720144823515,100.0,128.81,128.71,7.7693]
[1720144823722,7.7644,128.8,128.71,7.7693]
[1720144823938,7.7647,128.79,128.7,50.4729]
[1720144824236,7.7641,128.8,128.71,7.7692]
[1720144825220,107.7648,128.79,128.7,50.4729]
[1720144825539,100.0,128.76,128.7,23.279]
[1720144825716,7.7676,128.74,128.7,23.279]
[1720144825919,100.0,128.78,128.7,23.279]
[1720144826138,7.7658,128.77,128.7,23.279]
[1720144826320,100.0,128.78,128.7,23.279]
[1720144826321,7.7671,128.75,128.7,23.279]
[1720144827116,7.7671,128.75,128.7,6.66]
[1720144827425,7.7682,128.73,128.68,0.8286809]
[1720144827837,108.11353929,128.78,128.68,0.8286809]
[1720144828041,100.0,128.78,128.68,0.8286809]
[1720144828339,100.0,128.76,128.68,0.8286809]
[1720144828542,7.7675,128.75,128.68,0.8286809]
[1720144828741,7.7671,128.75,128.68,0.8286809]
[1720144829115,100.0,128.76,128.68,0.8286809]
[1720144829544,107.7665,128.76,128.68,0.8286809]
[1720144829847,7.7672,128.75,128.68,0.8286809]
[1720144830524,100.0,128.78,128.68,0.8286809]
[1720144830719,7.7651,128.79,128.68,20.2553809]
[1720144831232,7.7652,128.78,128.7,7.7699]
[1720144831441,7.7652,128.78,128.69,7.7704]
[1720144831625,100.0,128.8,128.7,7.7698]
[1720144831823,100.0,128.78,128.69,7.7704]
[1720144832225,100.0,128.76,128.68,0.8286809]
[1720144832414,107.7664,128.76,128.68,0.8286809]
[1720144832627,100.0,128.8,128.68,0.8286809]
[1720144832936,100.0,128.78,128.69,19.4259]
[1720144833317,100.0,128.76,128.68,0.8286809]
[1720144833518,7.7672,128.75,128.68,0.8286809]
[1720144833718,100.0,128.74,128.68,0.8286809]
[1720144833944,100.0,128.76,128.68,0.8286809]
[1720144834120,7.767,128.75,128.68,0.8286809]
[1720144838264,7.7701,128.7,128.68,0.8286809]
[1720144838788,107.77,128.7,128.68,0.8286809]
[1720144839236,7.7706,128.69,128.68,0.8286809]
[1720144841059,100.0,128.74,128.68,0.8286809]
[1720144841762,107.7677,128.74,128.68,0.8286809]
[1720144842146,7.7683,128.73,128.68,0.8286809]
[1720144842457,107.769,128.72,128.68,0.8286809]
[1720144843870,100.0,128.74,128.68,0.8286809]
[1720144844048,7.7687,128.73,128.68,0.8286809]
[1720144844257,100.0,128.76,128.68,0.8286809]
[1720144844570,7.7669,128.75,128.68,0.8286809]
[1720144844752,15.88095882,128.75,128.68,0.8286809]
[1720144844962,7.7677,128.74,128.68,0.8286809]
[1720144845474,107.7682,128.73,128.68,0.8286809]
[1720144845967,7.7688,128.72,128.68,0.8286809]
[1720144846141,107.7683,128.73,128.68,0.8286809]
[1720144846338,7.7676,128.74,128.68,0.8286809]
[1720144846540,100.0,128.73,128.68,0.8286809]
[1720144846850,7.7676,128.74,128.68,0.8286809]
[1720144847377,7.7691,128.72,128.68,0.8286809]
[1720144847750,107.7683,128.73,128.68,0.8286809]
[1720144848256,7.7689,128.72,128.68,0.8286809]
[1720144848763,100.0,128.7,128.68,0.8286809]
[1720144848970,107.7705,128.7,128.68,0.8286809]
[1720144849261,100.0,128.7,128.68,0.8286809]
[1720144849650,107.7705,128.7,128.68,0.8286809]
[1720144850478,108.11672956,128.74,128.68,0.8286809]
[1720144850479,100.0,128.72,128.68,0.8286809]
[1720144851183,107.7688,128.72,128.68,0.8286809]
[1720144851345,100.0,128.72,128.68,0.8286809]
[1720144852354,7.7699,128.71,128.68,0.8286809]
[1720144852755,100.0,128.72,128.68,0.8286809]
[1720144852756,7.7701,128.7,128.68,0.8286809]
[1720144852973,7.7694,128.71,128.68,0.8286809]
[1720144853279,107.7701,128.7,128.68,0.8286809]
[1720144853777,100.0,128.7,128.68,0.8286809]
[1720144853982,107.7693,128.72,128.68,0.8286809]
[1720144854683,100.0,128.72,128.68,0.8286809]
[1720144856048,100.0,128.7,128.68,0.8286809]
[1720144856246,107.7701,128.7,128.68,0.8286809]
[1720144856468,100.0,128.7,128.68,0.8286809]
[1720144857571,107.7701,128.7,128.68,0.8286809]
[1720144857768,7.7701,128.7,128.68,0.8286809]
[1720144858071,7.7696,128.71,128.68,0.8286809]
[1720144858504,7.7701,128.7,128.68,0.8286809]
[1720144858796,7.7706,128.69,128.68,0.8286809]
[1720144861374,100.0,128.7,128.68,0.8286809]
[1720144861596,108.11919991,128.72,128.68,0.8286809]
[1720144861867,107.7692,128.72,128.68,0.8286809]
[1720144862102,7.7698,128.71,128.68,16.5892809]
[1720144862305,100.0,128.75,128.68,16.5892809]
[1720144862502,7.768,128.74,128.68,16.5892809]
[1720144862813,100.0,128.77,128.68,22.7279809]
[1720144862970,7.764,128.8,128.68,22.7279809]
[1720144863170,7.7654,128.78,128.69,7.7705]
[1720144863380,108.11555297,128.81,128.68,22.7279809]
[1720144864102,108.11555297,128.81,128.69,19.4258]
[1720144864103,8.11555297,128.81,128.69,19.4258]
[1720144864271,7.7628,128.82,128.7,0.17]
[1720144864470,135.2,128.83,128.74,7.7674]
[1720144864682,7.7628,128.82,128.73,19.4197]
[1720144864875,100.0,128.81,128.7,429.5246]
[1720144865174,100.0,128.81,128.7,409.5246]
[1720144865371,7.7658,128.77,128.7,390.1]
[1720144865581,100.0,128.79,128.69,6.5134]
[1720144865792,7.7664,128.76,128.69,6.5134]
[1720144865998,7.7671,128.75,128.69,6.5134]
[1720144866192,100.0,128.77,128.69,6.5134]
[1720144866193,107.7663,128.77,128.69,6.5134]
[1720144866503,7.7664,128.76,128.69,6.5134]
[1720144866881,107.7659,128.77,128.69,6.5134]
[1720144867091,100.0,128.75,128.69,6.5134]
[1720144867804,7.7688,128.72,128.68,16.5892809]
[1720144868293,107.7682,128.73,128.68,16.5892809]
[1720144869194,7.7689,128.72,128.68,16.5892809]
[1720144869524,7.7682,128.73,128.68,16.5892809]
[1720144869682,7.7677,128.74,128.68,16.5892809]
[1720144869884,107.7683,128.73,128.68,16.5892809]
[1720144870073,7.7691,128.72,128.68,16.5892809]
[1720144870276,100.0,128.73,128.68,16.5892809]
[1720144870277,107.7683,128.73,128.68,16.5892809]
[1720144871006,107.7683,128.73,128.68,0.8286809]
[1720144871007,7.7694,128.71,128.68,0.8286809]